bitfinex-derivatives/quotes_ETHF0:USTF0_20260204
["timestamp","ask_amount","ask_price","bid_price","bid_amount"]
[1770169986077,0.00370241,2260.9,2260.1,0.15564776]
[1770169986373,0.00370241,2260.9,2260.4,0.15564776]
[1770169986577,39.74783047,2261.6,2260.5,0.15564776]
[1770169986777,0.13605777,2261.6,2260.5,0.15564776]
[1770169987173,0.13605777,2261.6,2260.6,0.15564776]
[1770169987674,0.14140857,2261.6,2260.6,0.15564776]
[1770169987974,0.14140857,2261.6,2260.5,0.22151]
[1770169988780,0.14140857,2261.6,2260.5,0.37715776]
[1770169988978,0.14140857,2261.6,2260.6,0.15564776]
[1770169991677,0.14140857,2261.6,2260.7,0.15564776]
[1770169992983,0.0053508,2261.6,2260.9,0.15564776]
[1770169993180,0.13495137,2262.1,2261.0,0.15564776]
[1770169994183,0.13847735,2262.1,2261.0,0.15564776]
[1770169994585,0.13847735,2262.1,2261.1,0.15564776]
[1770169995886,0.13847735,2262.1,2261.2,0.15564776]
[1770169996086,0.00352598,2262.1,2261.2,0.15564776]
[1770169996890,0.00352598,2262.1,2261.2,0.37707776]
[1770169997094,0.00352598,2262.1,2261.3,0.15564776]
[1770169997388,0.00352598,2262.1,2261.3,0.37706776]
[1770169997590,0.13585923,2262.6,2261.7,0.15564776]
[1770169998590,0.00568777,2262.6,2261.7,0.15922657]
[1770169999585,0.00568777,2262.6,2261.7,0.00357881]
[1770169999890,0.13632461,2263.3,2262.0,0.37700776]
[1770170000285,0.13632461,2263.3,2262.1,0.15564776]
[1770170000690,0.14003736,2263.3,2262.1,0.15564776]
[1770170002091,0.14003736,2263.3,2262.2,0.15958816]
[1770170003894,0.00371275,2263.3,2261.8,0.74589816]
[1770170004094,0.00371275,2263.3,2262.4,0.22131]
[1770170004292,0.00371275,2263.3,2261.8,0.74589816]
[1770170004293,0.00371275,2263.3,2262.5,0.2213]
[1770170004487,0.00371275,2263.3,2262.6,0.2213]
[1770170004691,0.00371275,2263.3,2261.8,0.74589816]
[1770170004994,0.1616795,2264.0,2262.7,0.22128]
[1770170005391,0.1616795,2264.0,2262.2,0.865]
[1770170005593,0.1616795,2263.9,2262.2,0.22134]
[1770170005789,0.16559392,2263.9,2262.2,0.22134]
[1770170005994,0.16559392,2263.9,2262.3,0.15958816]
[1770170006693,0.1616795,2263.8,2262.3,0.15958816]
[1770170006898,0.1616795,2263.6,2262.4,0.15958816]
[1770170007596,0.16559392,2263.9,2262.8,0.15958816]
[1770170008095,0.16559392,2263.9,2262.0,0.865]
[1770170008096,0.16559392,2263.9,2262.5,0.15958816]
[1770170010597,0.16559392,2263.9,2262.6,0.15958816]
[1770170011390,0.16559392,2263.9,2262.7,0.15958816]
[1770170011592,0.16559392,2263.9,2262.9,0.15958816]
[1770170012093,0.00391442,2263.9,2262.9,0.15958816]
[1770170012297,0.00391442,2263.9,2263.0,0.15958816]
[1770170012897,0.16559392,2263.9,2263.0,0.15958816]
[1770170013493,0.16559392,2263.9,2262.7,0.15958816]
[1770170014798,0.16559392,2263.9,2262.8,0.15958816]
[1770170016500,0.16559392,2263.9,2262.9,0.15958816]
[1770170016694,0.00391442,2263.9,2262.9,0.15958816]
[1770170016895,0.00391442,2263.9,2263.3,0.15958816]
[1770170017099,0.00391442,2263.9,2263.3,0.16521936]
[1770170017503,0.1616795,2264.6,2263.5,0.15958816]
[1770170017702,0.1616795,2264.6,2263.7,0.15958816]
[1770170018506,0.16700133,2264.6,2263.7,0.15958816]
[1770170019200,0.16700133,2264.6,2263.9,0.15958816]
[1770170020802,0.16700133,2264.6,2263.6,0.15958816]
[1770170024210,0.1616795,2264.5,2263.3,0.16521936]
[1770170024508,0.1616795,2264.5,2263.3,0.0056312]
[1770170026009,0.1616795,2264.5,2263.4,0.15958816]
[1770170026306,0.1616795,2264.5,2263.5,0.22121]
[1770170026510,0.1616795,2264.5,2263.6,0.15958816]
[1770170026909,0.00532183,2264.6,2264.1,0.15958816]
[1770170027107,0.1616795,2265.1,2264.1,0.15958816]
[1770170028003,0.16485616,2265.1,2264.1,0.15958816]
[1770170028210,0.00317666,2265.1,2264.1,0.15958816]
[1770170029306,0.00317666,2265.1,2264.2,0.15958816]
[1770170031416,0.16895562,2265.1,2264.2,0.15958816]
[1770170033716,0.00317666,2265.1,2264.7,0.16766966]
[1770170034117,0.00317666,2265.1,2264.6,0.38876966]
[1770170034417,0.00317666,2265.1,2263.8,2.63641841]
[1770170034418,0.00317666,2265.1,2264.3,0.16766966]
[1770170034915,39.6117727,2265.6,2264.8,0.16766966]
[1770170035114,0.16577896,2265.8,2264.8,0.16766966]
[1770170035817,0.16577896,2265.8,2264.9,0.15519029]
[1770170036117,0.16901006,2265.8,2264.9,0.15839038]
[1770170037124,0.15607562,2266.2,2265.2,0.15519029]
[1770170037511,0.15607562,2266.2,2264.9,0.15839038]
[1770170038116,0.16084194,2266.2,2264.9,0.15839038]
[1770170038318,0.16084194,2266.2,2265.0,0.15519029]
[1770170038716,0.15607562,2266.0,2265.0,0.15519029]
[1770170039220,0.15607562,2266.0,2264.9,0.00320009]
[1770170039221,0.15607562,2265.9,2264.9,0.00320009]
[1770170040117,2.06076,2265.7,2264.9,0.00320009]
[1770170040316,0.15607562,2265.6,2264.9,0.00320009]
[1770170041315,39.76784832,2265.6,2264.1,0.15519029]
[1770170041518,0.15607562,2265.5,2264.1,0.15519029]
[1770170041719,0.15607562,2265.3,2264.2,0.15519029]
[1770170042222,0.15607562,2265.3,2264.3,0.15519029]
[1770170042416,39.6117727,2265.8,2265.0,0.22106]
[1770170042621,0.16084194,2266.2,2265.1,0.15519029]
[1770170044529,0.15607562,2266.1,2265.0,0.22106]
[1770170044718,0.15607562,2266.0,2265.0,0.22106]
[1770170047127,0.15607562,2265.9,2265.0,0.22106]
[1770170047330,0.15607562,2265.8,2264.5,0.15519029]
[1770170047728,1.29607562,2265.8,2264.5,0.15519029]
[1770170047928,0.15607562,2265.7,2264.5,0.15519029]
[1770170049629,0.16084194,2266.2,2265.0,0.22106]
[1770170049827,0.16084194,2266.2,2265.2,0.15519029]
[1770170050027,0.00476632,2266.2,2265.2,0.15519029]
[1770170051026,0.05323014,2266.4,2265.7,0.15519029]
[1770170051227,0.15607562,2266.9,2266.0,0.15519029]
[1770170051433,0.15607562,2266.9,2265.9,0.22098]
[1770170051930,0.16007571,2266.9,2265.9,0.22543962]
[1770170053432,0.00400009,2266.9,2266.0,0.15519029]
[1770170053834,0.15607562,2267.2,2266.0,0.15519029]
[1770170054135,0.15607562,2267.2,2266.3,0.15519029]
[1770170054333,0.15607562,2267.5,2266.3,0.15519029]
[1770170054530,0.15607562,2267.5,2266.4,0.15519029]
[1770170054734,0.15607562,2267.5,2266.5,0.15519029]
[1770170055034,0.16080531,2267.5,2266.5,0.15519029]
[1770170055432,0.00472969,2267.5,2266.7,0.15519029]
[1770170055638,0.00472969,2267.5,2266.9,0.15519029]
[1770170056334,0.00472969,2267.5,2266.8,0.22089]
[1770170057836,0.00472969,2267.5,2266.9,0.15519029]
[1770170058032,0.15607562,2268.2,2267.2,0.15519029]
[1770170058336,0.15607562,2268.5,2267.7,0.37598029]
[1770170058530,0.15607562,2268.9,2268.0,0.15519029]
[1770170058728,0.15607562,2268.9,2267.9,0.22078]
[1770170059129,0.16129813,2268.9,2267.9,0.00384954]
[1770170060336,0.16129813,2268.9,2268.0,0.37595029]
[1770170061134,0.00522251,2268.9,2268.1,0.16745919]
[1770170062135,0.16361298,2268.9,2268.1,0.16745919]
[1770170062340,0.00522251,2268.9,2268.1,0.16745919]
[1770170062540,0.00522251,2268.9,2268.3,0.16745919]
[1770170063242,0.16361298,2268.9,2268.2,0.22075]
[1770170063641,0.16361298,2268.9,2267.9,0.00384954]
[1770170066644,0.16361298,2268.9,2268.0,0.38822919]
[1770170066846,0.16361298,2268.9,2268.1,0.16745919]
[1770170067549,0.00522251,2268.9,2268.2,0.16745919]
[1770170068348,0.00522251,2268.9,2268.2,0.38820919]
[1770170068745,0.00522251,2268.9,2268.3,0.16745919]
[1770170068942,0.15839047,2269.3,2268.3,0.38819919]
[1770170069247,0.15839047,2269.3,2268.4,0.16745919]
[1770170069643,0.15839047,2269.3,2268.3,0.22074]
[1770170069644,0.15839047,2269.6,2268.6,0.16745919]
[1770170069842,0.15839047,2269.6,2268.8,0.16745919]
[1770170070149,0.1621172,2269.6,2268.8,0.16745919]
[1770170070346,0.1621172,2269.6,2268.7,0.2207]
[1770170072145,0.15839047,2269.4,2267.9,0.17130873]
[1770170072552,0.15839047,2269.4,2267.9,0.00384954]
[1770170072749,0.86572673,2269.6,2267.9,0.00384954]
[1770170072750,0.15839047,2269.0,2267.9,0.00384954]
[1770170074046,0.37907047,2269.0,2267.9,0.00384954]
[1770170074353,0.15839047,2268.9,2267.9,0.00384954]
[1770170074855,0.15839047,2268.6,2267.3,0.38829919]
[1770170075855,0.15839047,2268.6,2267.3,0.39319655]
[1770170076256,0.15839047,2268.6,2267.3,0.22573736]
[1770170077058,0.15839047,2268.6,2267.3,0.39319655]
[1770170077857,0.15839047,2268.6,2267.3,0.22573736]
[1770170078756,0.15839047,2268.6,2267.3,0.00489736]
[1770170079066,0.15839047,2268.5,2267.3,0.00489736]
[1770170079265,0.15839047,2268.4,2267.3,0.00489736]
[1770170079566,0.15839047,2268.2,2267.3,0.00489736]
[1770170083160,0.15839047,2268.2,2267.3,0.17235655]
[1770170084764,39.77016317,2268.5,2267.6,0.16745919]
[1770170084963,0.15839047,2268.5,2267.6,0.16745919]
[1770170085266,0.15839047,2268.5,2267.5,0.22082]
[1770170086266,0.15839047,2268.5,2267.6,0.38826919]
[1770170086562,0.15839047,2268.5,2267.7,0.16745919]
[1770170088069,39.6117727,2269.0,2268.1,0.16745919]
[1770170088266,0.15839047,2268.9,2268.0,0.22077]
[1770170088469,0.15839047,2268.9,2267.5,2.8038776]
[1770170088667,0.15839047,2268.4,2267.3,0.00489736]
[1770170088871,0.15839047,2268.3,2267.3,0.00489736]
[1770170089066,39.77016317,2268.3,2267.3,0.00489736]
[1770170089272,0.15839047,2268.2,2267.3,0.00489736]
[1770170089868,40.91916317,2268.2,2267.3,0.00489736]
[1770170090071,0.15839047,2268.0,2267.0,0.22087]
[1770170091173,0.1623955,2268.0,2267.0,0.22609254]
[1770170092067,0.1623955,2268.0,2267.0,0.38387404]
[1770170094177,0.1623955,2268.0,2267.1,0.1577815]
[1770170094375,0.1623955,2268.0,2267.1,0.3786415]
[1770170094568,0.00400503,2268.0,2267.2,0.1577815]
[1770170094873,0.00400503,2268.0,2267.0,0.00522254]
[1770170094874,0.00400503,2268.0,2267.4,0.1577815]
[1770170096279,0.16107154,2268.3,2267.6,0.15793143]
[1770170097379,0.16492617,2268.3,2267.6,0.15793143]
[1770170097979,0.00385463,2268.3,2267.6,0.15793143]
[1770170098474,0.00385463,2268.3,2267.6,0.22081]
[1770170098675,0.16759333,2268.3,2267.6,0.22081]
[1770170099977,0.16759333,2268.3,2267.1,0.22086]
[1770170100170,0.1637387,2268.2,2267.1,0.37879143]
[1770170100371,0.1637387,2268.2,2267.1,0.22086]
[1770170100581,0.1637387,2268.0,2267.1,0.22086]
[1770170101084,0.1637387,2267.9,2267.1,0.22086]
[1770170102079,0.1637387,2267.9,2267.0,0.00522254]
[1770170102080,39.7755114,2267.9,2267.0,0.00522254]
[1770170102281,39.7755114,2267.8,2267.0,0.00522254]
[1770170102480,39.7755114,2267.8,2267.0,0.16315397]
[1770170102776,39.6117727,2267.9,2267.1,0.37879143]
[1770170103081,39.7755114,2267.9,2267.1,0.37879143]
[1770170105877,0.1637387,2267.8,2267.0,0.00522254]
[1770170106080,0.1637387,2267.6,2267.0,0.00522254]
[1770170106280,0.1637387,2267.4,2266.4,2.79434984]
[1770170106478,0.1637387,2267.4,2266.5,0.37885143]
[1770170107178,0.1637387,2267.4,2266.5,0.38300065]
[1770170108582,0.1637387,2267.3,2266.5,0.22506922]
[1770170108781,0.1637387,2266.9,2266.0,0.15793143]
[1770170109381,39.6117727,2267.0,2266.0,0.37890143]
[1770170109581,39.6117727,2267.0,2266.1,0.15793143]
[1770170109781,0.1637387,2266.9,2266.1,0.16123405]
[1770170109980,0.1637387,2266.9,2266.1,0.00330262]
[1770170110177,0.1637387,2266.9,2266.1,0.16123405]
[1770170111187,40.7927727,2267.1,2266.1,0.16123405]
[1770170111685,0.1637387,2267.0,2266.1,0.16123405]
[1770170111885,1.181,2267.1,2266.4,0.15793143]
[1770170112484,39.7755114,2267.3,2266.4,0.15793143]
[1770170112781,0.1637387,2267.3,2266.4,0.15793143]
[1770170116789,0.1637387,2267.3,2266.3,0.22094]
[1770170116989,0.1637387,2267.3,2266.4,0.15793143]
[1770170117387,0.1637387,2267.3,2266.5,0.15793143]
[1770170117588,0.1637387,2267.3,2266.6,0.15793143]
[1770170118293,1.3597387,2267.5,2266.6,0.15793143]
[1770170119088,0.1637387,2267.4,2266.6,0.15793143]
[1770170121292,1.196,2267.5,2266.7,0.16228047]
[1770170121490,39.76785774,2267.7,2266.7,0.16228047]
[1770170121887,0.15608504,2267.6,2266.8,0.16228047]
[1770170122392,0.15608504,2267.6,2266.7,0.2209]
[1770170122988,0.15608504,2267.5,2266.7,0.2209]
[1770170123189,0.15608504,2267.5,2266.5,0.16228047]
[1770170126493,0.15608504,2267.5,2266.6,0.16228047]
[1770170128291,39.76785774,2267.5,2266.6,0.16228047]
[1770170128694,39.6117727,2267.5,2266.8,0.16228047]
[1770170128893,0.15608504,2268.0,2267.2,0.16228047]
[1770170129092,0.15608504,2268.0,2267.0,0.16228047]
[1770170129294,0.15608504,2267.9,2266.8,0.16228047]
[1770170129693,0.15608504,2267.7,2266.8,0.16228047]
[1770170131692,0.15608504,2267.7,2266.7,0.2209]
[1770170131893,0.15608504,2267.7,2266.4,2.63641841]
[1770170132093,0.15608504,2267.0,2266.1,0.00330262]
[1770170132297,0.15608504,2266.8,2266.1,0.00330262]
[1770170133201,0.15608504,2266.8,2266.1,0.16558309]
[1770170137206,0.15608504,2267.1,2266.1,0.16558309]
[1770170137604,0.15608504,2267.0,2266.1,0.16558309]
[1770170137804,0.15608504,2266.9,2266.1,0.00330262]
[1770170138004,0.15608504,2266.8,2265.8,0.16228047]
[1770170138607,40.8327727,2266.9,2265.9,0.16228047]
[1770170138807,1.221,2266.9,2266.0,0.16228047]
[1770170139006,1.37708504,2266.9,2266.0,0.16733497]
[1770170139206,39.6117727,2267.0,2266.0,0.16733497]
[1770170139807,39.76785774,2267.0,2266.0,0.16733497]
[1770170141209,39.6117727,2267.0,2266.0,0.38830497]
[1770170141408,39.6117727,2267.1,2266.1,0.16228047]
[1770170141607,0.15608504,2267.0,2266.1,0.16228047]
[1770170145812,39.76785774,2267.0,2266.1,0.16228047]
[1770170146409,0.15608504,2267.0,2266.1,0.16228047]
[1770170153112,0.15244373,2266.9,2266.0,0.0050545]
[1770170153316,0.15244373,2266.7,2266.0,0.0050545]
[1770170153517,0.15790283,2266.7,2266.0,0.0050545]
[1770170153714,0.15244373,2266.5,2265.6,0.221]
[1770170154016,0.15244373,2266.5,2265.6,0.37418205]
[1770170154222,39.76967553,2266.7,2265.8,0.37417205]
[1770170154416,0.15790283,2266.7,2265.8,0.37417205]
[1770170154717,0.15790283,2266.7,2265.9,0.15318205]
[1770170154918,0.0054591,2266.7,2266.0,0.15318205]
[1770170155115,0.0054591,2266.7,2266.0,0.37415205]
[1770170155316,0.0054591,2266.7,2266.1,0.15318205]
[1770170155518,0.16529067,2266.7,2266.1,0.15318205]
[1770170156119,0.0054591,2266.7,2266.1,0.15318205]
[1770170159818,0.16529067,2266.7,2265.9,0.16170566]
[1770170160017,39.77706337,2266.7,2265.8,0.00572865]
[1770170160219,39.6117727,2266.5,2265.8,0.00572865]
[1770170160415,39.6117727,2266.4,2265.6,0.38271566]
[1770170160619,39.6117727,2266.5,2265.8,0.16170566]
[1770170160919,0.16529067,2266.7,2266.1,0.16170566]
[1770170161318,39.77706337,2266.7,2266.1,0.16170566]
[1770170161519,39.77706337,2266.7,2266.1,0.16585204]
[1770170162322,39.6172318,2266.7,2266.1,0.16585204]
[1770170163126,39.6117727,2266.9,2266.3,0.16170566]
[1770170163326,0.15983157,2267.0,2266.2,2.63915294]
[1770170163527,39.77160427,2266.8,2266.1,0.00414638]
[1770170163725,0.15983157,2266.7,2266.1,0.00414638]
[1770170164127,0.16441615,2266.7,2266.1,0.00414638]
[1770170166627,0.15983157,2266.6,2265.9,2.63915294]
[1770170166832,39.77160427,2266.4,2265.6,2.8008586]
[1770170167027,39.6117727,2266.4,2265.7,0.16170566]
[1770170167227,39.6117727,2266.5,2265.7,0.16170566]
[1770170167731,39.6117727,2266.5,2265.7,0.16582789]
[1770170169629,39.77160427,2266.5,2265.7,0.16582789]
[1770170170532,41.07760427,2266.4,2265.7,0.00412223]
[1770170170736,0.15983157,2266.2,2265.7,0.00412223]
[1770170170936,0.15983157,2266.2,2265.4,0.16170566]
[1770170171133,0.15983157,2266.2,2265.3,2.64609936]
[1770170171334,39.6117727,2266.3,2265.4,0.38272566]
[1770170171636,6.74740126,2266.4,2265.6,0.16170566]
[1770170171637,39.77160427,2266.4,2265.6,0.16170566]
[1770170171836,39.6117727,2266.5,2265.7,0.16170566]
[1770170172035,39.77160427,2266.5,2265.7,0.16170566]
[1770170172832,0.15983157,2266.5,2265.7,0.16170566]
[1770170173337,0.15983157,2266.5,2265.7,0.38269566]
[1770170174039,0.00458458,2266.7,2266.1,0.16170566]
[1770170174339,0.15983157,2266.6,2265.7,2.64609936]
[1770170174529,0.15983157,2266.3,2265.6,0.00479624]
[1770170175338,0.15983157,2266.3,2265.6,0.3875119]
[1770170175530,0.15983157,2266.3,2265.6,0.22580624]
[1770170177236,0.15983157,2266.3,2265.6,0.3875119]
[1770170181038,0.15983157,2266.3,2265.6,0.22580624]
[1770170181242,0.15983157,2266.3,2265.6,0.3776983]
[1770170181443,40.9397727,2266.4,2265.7,0.15189206]
[1770170181743,41.0999244,2266.4,2265.7,0.15189206]
[1770170182043,1.328,2266.4,2265.8,0.15189206]
[1770170182246,39.6117727,2266.5,2265.8,0.15189206]
[1770170183837,39.6117727,2266.5,2265.9,0.15189206]
[1770170184044,0.00458458,2266.7,2266.0,0.15189206]
[1770170184837,0.00458458,2266.7,2266.3,1.45611014]
[1770170185045,39.6117727,2267.2,2266.4,0.15189206]
[1770170185643,41.06788284,2267.2,2266.3,0.22094]
[1770170185945,1.45611014,2267.0,2266.3,0.22094]
[1770170187046,0.1601517,2266.9,2266.3,0.22094]
[1770170187243,0.1601517,2266.9,2266.0,2.64609936]
[1770170187442,1.45611014,2266.5,2265.8,0.15189206]
[1770170187943,0.1601517,2266.8,2266.1,0.15189206]
[1770170188243,0.1601517,2266.8,2266.0,0.22096]
[1770170188542,0.1601517,2266.4,2265.6,0.1566883]
[1770170188851,39.7719244,2266.8,2265.9,0.15189206]
[1770170189143,0.1601517,2266.8,2265.9,0.15189206]
[1770170189538,0.1601517,2266.8,2265.9,0.37287206]
[1770170189937,1.372,2266.9,2266.2,0.15189206]
[1770170190639,39.6117727,2267.1,2266.3,0.15189206]
[1770170190945,0.1601517,2267.0,2266.2,0.22095]
[1770170192044,0.1601517,2267.0,2266.2,0.37284206]
[1770170195240,0.1601517,2267.0,2266.3,0.15189206]
[1770170200649,39.6117727,2267.1,2266.3,0.37282206]
[1770170201146,39.6117727,2267.1,2266.4,0.15189206]
[1770170202549,39.77180804,2267.1,2266.4,0.15189206]
[1770170203049,0.16003534,2267.0,2266.3,0.22093]
[1770170203251,39.61679789,2267.2,2266.6,0.15189206]
[1770170205754,0.00502519,2267.2,2266.6,0.15189206]
[1770170206252,0.00502519,2267.2,2266.6,0.37280206]
[1770170206452,0.00502519,2267.2,2266.7,0.15189206]
[1770170207950,0.00502519,2267.2,2266.8,0.22089]
[1770170208149,39.6117727,2267.7,2267.3,0.15189206]
[1770170208450,0.1601517,2268.0,2267.3,0.15189206]
[1770170208655,0.1601517,2268.0,2267.2,0.22085]
[1770170208850,0.1601517,2267.9,2267.2,0.22085]
[1770170209155,0.16392693,2267.9,2267.2,0.22608226]
[1770170210050,0.15493472,2267.8,2266.9,0.15189206]
[1770170210258,0.15493472,2267.7,2266.9,0.15189206]
[1770170210858,0.15493472,2267.7,2266.7,0.37265366]
[1770170211453,0.15493472,2267.7,2266.7,0.37805494]
[1770170211654,0.15493472,2267.7,2266.7,0.22630128]
[1770170211858,0.15782236,2267.5,2266.7,0.22630128]
[1770170212458,1.61305105,2267.4,2266.7,0.22630128]
[1770170212656,0.15682742,2267.3,2266.7,0.22630128]
[1770170216762,0.15682742,2267.3,2266.7,0.00540128]
[1770170217560,0.15610419,2267.1,2266.7,0.00540128]
[1770170217761,0.15610419,2266.9,2266.2,2.86703936]
[1770170218065,0.15610419,2266.9,2266.2,0.22094]
[1770170218265,0.15610419,2266.9,2266.2,0.38313719]
[1770170218465,1.45522869,2266.8,2266.2,0.38313719]
[1770170218863,1.61133288,2266.8,2266.2,0.38313719]
[1770170219164,0.15610419,2266.8,2266.2,0.38702912]
[1770170220661,1.45522869,2267.0,2266.2,0.22483193]
[1770170220860,0.15610419,2267.1,2266.3,0.16219719]
[1770170221461,5.28156969,2267.3,2266.4,0.16219719]
[1770170221666,6.89290257,2267.4,2266.5,0.16219719]
[1770170222465,0.15610419,2267.4,2266.6,0.16219719]
[1770170227067,0.15610419,2267.2,2266.2,2.81218848]
[1770170227272,0.15610419,2267.2,2266.3,0.16219719]
[1770170228768,0.15610419,2267.2,2266.4,0.16219719]
[1770170229672,0.15610419,2267.2,2266.5,0.16219719]
[1770170230067,5.43767388,2267.4,2266.5,0.16219719]
[1770170231582,5.43767388,2267.4,2266.5,0.38311719]
[1770170231769,0.15610419,2267.3,2266.5,0.22092]
[1770170233473,0.15610419,2267.3,2266.5,0.38311719]
[1770170235478,5.28156969,2267.4,2266.6,0.16219719]
[1770170235680,5.43767388,2267.5,2266.6,0.16219719]
[1770170238786,5.43767388,2267.7,2266.9,0.16219719]
[1770170240085,0.15610419,2267.6,2266.9,0.16219719]
[1770170240286,5.28156969,2267.7,2266.9,0.16219719]
[1770170240684,5.44295273,2267.7,2266.9,0.16219719]
[1770170242087,0.16138304,2267.6,2266.9,0.16219719]
[1770170243590,5.28156969,2267.7,2266.9,0.16219719]
[1770170244089,5.44295273,2267.7,2266.9,0.16219719]
[1770170246495,0.15809735,2267.6,2266.8,0.22088]
[1770170246692,0.15809735,2267.4,2266.5,0.15794977]
[1770170246886,0.15809735,2267.3,2266.3,3.88521957]
[1770170247091,0.15809735,2267.2,2266.3,1.24188977]
[1770170247384,0.15809735,2267.2,2266.4,0.15794977]
[1770170248597,0.15809735,2267.2,2266.3,0.22094]
[1770170249093,0.15874971,2267.1,2266.3,0.37888977]
[1770170250098,0.15874971,2267.1,2266.3,0.22094]
[1770170252199,6.89519679,2267.1,2266.2,0.00389193]
[1770170252407,0.15308651,2266.7,2265.8,0.37893977]
[1770170252700,0.1517049,2266.6,2265.6,0.15794977]
[1770170253096,0.1517049,2266.4,2265.4,2.80127957]
[1770170253402,0.1517049,2266.4,2265.4,0.16274622]
[1770170255504,0.1517049,2266.4,2265.1,3.5063298]
[1770170255505,0.15179576,2266.2,2265.1,0.15794977]
[1770170256101,0.15179576,2266.1,2265.1,0.15794977]
[1770170256706,0.15746537,2266.1,2265.1,0.16342413]
[1770170257306,0.00566961,2266.1,2265.1,0.16342413]
[1770170257601,0.15562028,2266.1,2265.2,0.15794977]
[1770170258306,0.15562028,2266.1,2265.3,0.15794977]
[1770170258307,0.00566961,2266.1,2265.3,0.15794977]
[1770170258501,0.15562028,2266.1,2265.3,0.15794977]
[1770170259514,0.00566961,2266.1,2265.3,0.15794977]
[1770170260006,0.00566961,2266.1,2265.3,0.37897977]
[1770170260503,0.00566961,2266.1,2265.5,0.15794977]
[1770170263505,0.00566961,2266.1,2265.7,0.15794977]
[1770170264609,0.1495618,2266.7,2265.7,0.15794977]
[1770170265505,0.15515967,2266.7,2265.7,0.15794977]
[1770170266206,0.00559787,2266.7,2265.8,0.15794977]
[1770170266410,0.00559787,2266.7,2265.9,0.15794977]
[1770170269011,0.00559787,2266.7,2266.0,0.15794977]
[1770170270910,0.15933045,2266.7,2265.9,0.22098]
[1770170271309,0.15933045,2266.7,2266.0,0.15428594]
[1770170271712,0.00559787,2266.7,2266.0,0.15428594]
[1770170272615,0.15373258,2267.3,2266.2,0.15428594]
[1770170273409,39.34667946,2267.5,2266.5,0.15428594]
[1770170273609,0.15750194,2267.5,2266.6,0.15428594]
[1770170279119,0.15213457,2267.3,2266.1,0.15799174]
[1770170279619,0.00376936,2267.5,2266.7,0.15799174]
[1770170279919,0.15590393,2267.5,2266.7,0.16320224]
[1770170280615,0.00376936,2267.5,2266.7,0.38409224]
[1770170280821,0.00376936,2267.5,2266.8,0.15799174]
[1770170281718,0.15590393,2267.5,2266.7,0.2261005]
[1770170282022,0.15590393,2267.5,2266.7,0.0052105]
[1770170285427,0.15590393,2267.5,2266.7,0.16320224]
[1770170285622,0.00376936,2267.5,2266.7,0.16320224]
[1770170285919,0.15213457,2267.9,2267.0,0.15799174]
[1770170287121,0.15608106,2267.9,2267.0,0.15799174]
[1770170288330,0.15608106,2267.9,2266.7,0.0052105]
[1770170288331,0.00394649,2267.9,2267.2,0.15799174]
[1770170288531,0.15213457,2268.3,2267.3,0.15799174]
[1770170288725,0.15213457,2268.5,2267.4,0.22082]
[1770170288921,0.15213457,2268.8,2267.8,0.15799174]
[1770170289126,39.34508145,2269.0,2267.8,0.15799174]
[1770170289528,39.34987644,2269.0,2267.8,0.15799174]
[1770170289728,0.15692956,2269.0,2267.9,0.15799174]
[1770170289929,0.00479499,2269.0,2268.0,0.15799174]
[1770170290630,0.00479499,2269.0,2268.0,0.37876174]
[1770170290830,0.00479499,2269.0,2268.1,0.15799174]
[1770170291732,39.19294688,2269.7,2268.5,0.15799174]
[1770170292029,0.15213457,2269.7,2268.5,0.15799174]
[1770170292827,0.15666742,2269.7,2268.5,0.16132448]
[1770170294123,0.15666742,2269.7,2268.5,0.38204448]
[1770170294325,0.15666742,2269.7,2268.7,0.15799174]
[1770170295226,0.00453285,2269.7,2268.7,0.15799174]
[1770170296327,0.15666742,2269.7,2268.7,0.15799174]
[1770170296629,0.15213457,2269.5,2268.5,0.00333274]
[1770170296829,0.15213457,2269.4,2268.5,0.00333274]
[1770170297430,0.15213457,2269.4,2268.5,0.16132448]
[1770170297930,0.15213457,2269.6,2268.5,0.16132448]
[1770170299227,0.00453285,2269.7,2268.6,0.37870174]
[1770170299424,0.00453285,2269.7,2268.7,0.15799174]
[1770170299730,0.15666742,2269.7,2268.7,0.15799174]
[1770170302935,0.15666742,2269.7,2268.6,0.22071]
[1770170303134,0.15666742,2269.7,2268.7,0.16477127]
[1770170303637,0.15512142,2269.6,2268.5,0.00333274]
[1770170303836,0.15512142,2269.6,2268.5,0.16810401]
[1770170308537,0.15512142,2269.6,2268.6,0.16477127]
[1770170309541,0.00453285,2269.7,2268.6,0.38548127]
[1770170309838,0.00453285,2269.7,2268.7,0.16477127]
[1770170310539,0.15346,2269.6,2268.5,0.16810401]
[1770170312338,0.15346,2269.4,2268.5,0.00333274]
[1770170313440,0.15346,2269.4,2268.5,0.16810401]
[1770170315944,39.34484498,2269.6,2268.5,0.38882401]
[1770170316140,5.28610254,2269.7,2268.6,0.16477127]
[1770170316141,39.19747973,2269.7,2268.6,0.16477127]
[1770170316342,39.19294688,2269.6,2268.6,0.16477127]
[1770170316537,39.19294688,2269.6,2268.6,0.38548127]
[1770170316739,39.35153239,2269.7,2268.7,0.16477127]
[1770170316936,0.15405266,2269.6,2268.7,0.16477127]
[1770170317340,39.34699954,2269.6,2268.7,0.16477127]
[1770170317844,0.15405266,2269.4,2268.5,0.16810401]
[1770170318040,0.15405266,2269.3,2268.5,0.16810401]
[1770170318345,39.34699954,2269.2,2268.5,0.16810401]
[1770170318645,0.15429578,2269.1,2268.5,0.00333274]
[1770170318834,39.34724266,2269.0,2268.3,0.16477127]
[1770170319041,39.19294688,2269.0,2268.3,0.16477127]
[1770170319742,39.19294688,2269.0,2268.3,0.1698983]
[1770170320842,39.34873633,2269.0,2268.3,0.1698983]
[1770170321845,39.19294688,2269.0,2268.3,0.3906383]
[1770170322146,40.66194688,2269.3,2268.4,0.16477127]
[1770170322340,39.34873633,2269.2,2268.4,0.16477127]
[1770170322739,39.19294688,2269.1,2268.4,0.16477127]
[1770170323645,0.15607399,2269.0,2268.3,0.22586703]
[1770170323845,0.15607399,2269.0,2268.3,0.3906383]
[1770170324549,39.19294688,2269.1,2268.4,0.16477127]
[1770170327752,39.34846099,2269.1,2268.4,0.16477127]
[1770170328254,0.15551411,2269.0,2268.4,0.16477127]
[1770170328653,39.19294688,2269.1,2268.4,0.16477127]
[1770170328955,39.19294688,2269.2,2268.4,0.16477127]
[1770170329157,39.34861434,2269.2,2268.4,0.16477127]
[1770170329456,39.34861434,2269.1,2268.4,0.16477127]
[1770170330652,0.15241359,2268.8,2268.3,0.00512703]
[1770170330856,1.68641359,2268.7,2267.9,0.15363499]
[1770170331156,40.87936047,2268.7,2267.9,0.15363499]
[1770170331653,0.15241359,2268.6,2267.9,0.15363499]
[1770170331855,0.15241359,2268.6,2267.9,0.00358976]
[1770170332051,40.72694688,2268.7,2267.9,0.15722475]
[1770170335353,39.19294688,2268.8,2268.0,0.16082524]
[1770170335555,39.19294688,2269.0,2268.0,0.16082524]
[1770170336557,39.19294688,2269.0,2268.3,0.16082524]
[1770170336955,40.75194688,2269.1,2268.3,0.16082524]
[1770170337260,39.19294688,2269.0,2268.3,0.16082524]